bitfinex/quotes_ETHUSD_20241207
["timestamp","ask_amount","ask_price","bid_price","bid_amount"]
[1733549704572,0.51871543,3995.3,3994.7,1.75231]
[1733549705312,0.51871543,3995.3,3994.6,0.7958]
[1733549705494,0.51871543,3995.3,3994.8,1.75226]
[1733549706794,0.752,3995.5,3994.6,0.7958]
[1733549707111,0.752,3995.5,3995.2,1.75208]
[1733549708485,0.752,3995.5,3994.9,1.75222]
[1733549709107,0.752,3995.5,3995.0,1.75218]
[1733549709614,1.07897504,3995.3,3994.6,0.7958]
[1733549709814,1.07897504,3995.3,3994.8,1.75227]
[1733549710012,1.26207254,3995.3,3994.8,1.75227]
[1733549710807,1.26207254,3995.3,3994.6,2.54814]
[1733549710808,1.2933633,3995.3,3994.6,2.54814]
[1733549711127,1.26207254,3995.3,3994.7,1.75231]
[1733549711499,1.26207254,3995.3,3994.9,1.75222]
[1733549711817,0.1830975,3995.3,3994.9,1.75222]
[1733549712017,0.752,3995.5,3994.9,1.75222]
[1733549712498,1.07897504,3995.0,3994.4,1.75244]
[1733549713129,0.7559,3994.9,3994.4,1.75244]
[1733549714403,0.7559,3994.9,3994.3,0.7717]
[1733549714793,0.7559,3994.9,3994.5,1.75238]
[1733549717334,0.7559,3994.9,3994.3,1.75249]
[1733549718144,0.7559,3994.5,3993.6,1.75279]
[1733549718342,1.07897504,3994.2,3993.6,1.75277]
[1733549719847,0.7559,3994.1,3993.4,1.75288]
[1733549720140,0.03129949,3994.0,3993.4,1.75288]
[1733549720346,0.03129949,3994.0,3993.3,1.7529]
[1733549720502,0.7559,3994.1,3993.3,1.7529]
[1733549721435,0.7559,3994.1,3993.2,1.75295]
[1733549721932,0.7559,3994.1,3993.3,1.75293]
[1733549723235,0.95804925,3994.1,3993.3,1.75292]
[1733549723933,0.95804925,3994.1,3993.4,1.75288]
[1733549725152,4.80339488,3994.1,3993.4,1.75288]
[1733549732026,4.80339488,3994.1,3993.5,1.75284]
[1733549732460,4.80339488,3994.1,3993.1,0.7717]
[1733549732624,0.0634075,3994.0,3993.5,1.75283]
[1733549735339,0.0634075,3994.0,3993.7,1.75274]
[1733549735662,0.0634075,3994.0,3993.4,1.75289]
[1733549735843,0.0634075,3994.0,3993.8,1.75267]
[1733549736230,0.0634075,3994.0,3993.9,1.75267]
[1733549736762,0.06171937,3994.0,3993.9,1.75267]
[1733549736967,5.73482067,3994.4,3993.9,1.75267]
[1733549737163,0.06171937,3994.0,3993.9,1.75267]
[1733549737950,5.73482067,3994.4,3993.9,1.75267]
[1733549738153,0.06171937,3994.0,3993.9,1.75267]
[1733549738340,5.73482067,3994.4,3993.9,1.75267]
[1733549738537,0.06171937,3994.0,3993.9,1.75267]
[1733549738739,5.73482067,3994.4,3993.7,1.75275]
[1733549739050,0.06171937,3994.0,3993.7,1.75275]
[1733549739255,6.3213176,3994.4,3993.7,1.75275]
[1733549739462,0.06168839,3993.9,3993.7,1.75275]
[1733549739635,6.3213176,3994.4,3993.7,1.75275]
[1733549739828,0.06165741,3993.8,3993.7,1.75275]
[1733549740027,6.3213176,3994.4,3993.7,1.75275]
[1733549740233,0.06165741,3993.8,3993.7,1.75275]
[1733549740472,0.64514662,3994.3,3993.7,1.75275]
[1733549740643,0.06165741,3993.8,3993.7,1.75275]
[1733549740834,0.8105,3994.2,3993.7,1.75275]
[1733549741164,0.06165741,3993.8,3993.2,1.75298]
[1733549741368,0.06165741,3993.8,3993.1,1.75299]
[1733549741668,0.8105,3994.2,3993.1,2.010609]
[1733549741876,0.06162643,3993.7,3993.5,1.75283]
[1733549742037,0.8105,3994.2,3993.5,1.75283]
[1733549742238,0.06159545,3993.6,3993.5,1.75283]
[1733549742447,1.07897504,3994.1,3993.5,1.75283]
[1733549742630,0.06159545,3993.6,3993.5,1.75283]
[1733549742835,1.07897504,3994.1,3993.5,1.75283]
[1733549743179,0.8105,3993.7,3993.2,1.75296]
[1733549743659,0.06159545,3993.6,3993.2,1.75296]
[1733549748275,0.06159545,3993.6,3993.3,1.75293]
[1733549753289,1.07897504,3993.5,3992.7,0.793]
[1733549753490,1.07897504,3993.5,3993.0,1.75306]
[1733549753789,0.06147373,3993.4,3993.0,1.75306]
[1733549755279,0.06147373,3993.4,3993.0,2.007666]
[1733549755610,0.8105,3993.7,3993.0,2.007666]
[1733549755805,0.06136967,3993.3,3993.0,1.75306]
[1733549756009,0.8105,3993.7,3993.0,1.75306]
[1733549756309,0.06133869,3993.2,3993.0,1.75306]
[1733549756492,0.8105,3993.7,3993.0,1.75306]
[1733549757008,0.06146263,3993.6,3993.0,1.75306]
[1733549757582,0.06146263,3993.6,3993.1,1.75301]
[1733549757784,0.06146263,3993.6,3992.7,0.80559866]
[1733549757785,0.06146263,3993.6,3993.2,1.75296]
[1733549761212,0.06146263,3993.6,3993.2,0.175296]
[1733549761414,1.04671725,3994.1,3993.8,1.75271]
[1733549761621,0.86492849,3994.0,3993.8,1.75271]
[1733549761792,4.89206288,3994.2,3993.8,1.75271]
[1733549761996,0.06150905,3993.9,3993.8,1.75271]
[1733549762192,1.04671725,3994.2,3993.9,1.75263]
[1733549762429,2.16236147,3994.1,3994.0,1.75262]
[1733549763420,3.20907872,3994.1,3994.0,1.75262]
[1733549763983,3.20907872,3994.1,3993.8,2.53181]
[1733549764184,0.86494459,3994.0,3993.8,2.53181]
[1733549764412,1.04671725,3994.1,3993.8,2.53181]
[1733549764590,2.16431982,3994.0,3993.8,1.75271]
[1733549764802,1.04671725,3994.1,3993.8,1.75271]
[1733549765010,2.16431922,3994.0,3993.5,0.7791]
[1733549765218,1.04671725,3994.1,3993.8,1.75268]
[1733549765525,2.16431672,3994.0,3993.8,1.75268]
[1733549765690,0.86574926,3993.9,3993.8,1.75268]
[1733549766022,0.06164188,3993.9,3993.8,1.75268]
[1733549766231,1.04671725,3994.1,3993.8,1.75268]
[1733549766516,2.16435336,3994.0,3993.8,1.75268]
[1733549766717,0.92738086,3993.9,3993.8,1.75268]
[1733549766918,0.06164188,3993.9,3993.8,1.75268]
[1733549767124,1.04671725,3994.1,3993.5,0.7791]
[1733549767312,0.92739764,3994.0,3993.8,1.75268]
[1733549767493,0.06167286,3994.0,3993.8,1.75268]
[1733549768487,0.86565528,3993.9,3993.8,1.75268]
[1733549768694,0.06164188,3993.9,3993.8,1.75268]
[1733549768894,0.86569083,3993.9,3993.8,1.75268]
[1733549769127,0.92733271,3993.9,3993.8,1.75268]
[1733549769618,0.06164188,3993.9,3993.8,1.75268]
[1733549769833,1.85991725,3994.2,3993.5,1.13664796]
[1733549770029,2.1641617,3994.1,3993.9,1.75267]
[1733549770334,2.09830562,3994.6,3993.9,2.707037]
[1733549770335,1.04671725,3994.3,3993.9,2.707037]
[1733549770531,1.04671725,3994.6,3994.1,1.75258]
[1733549770735,1.04671725,3994.6,3994.2,0.7791]
[1733549770889,0.86573076,3994.5,3994.4,1.75245]
[1733549771415,4.89206288,3994.7,3994.4,1.75245]
[1733549771613,0.86552951,3994.6,3994.4,1.75245]
[1733549771831,4.89206288,3994.7,3994.4,1.75245]
[1733549772131,2.16374583,3994.6,3994.4,1.75245]
[1733549772325,2.16374583,3994.6,3993.5,2.11035796]
[1733549772326,0.86549833,3994.5,3993.9,1.75264]
[1733549772526,1.04671725,3994.3,3993.8,1.75269]
[1733549772731,1.04671725,3994.3,3993.4,0.8075]
[1733549772732,2.16326685,3994.2,3993.4,0.8075]
[1733549772893,3.98034094,3994.1,3993.6,1.7528]
[1733549773094,4.95757918,3994.0,3993.6,1.7528]
[1733549773297,2.16322369,3993.9,3993.6,1.7528]
[1733549773519,0.86533232,3993.8,3993.4,0.8075]
[1733549773703,0.05997363,3993.8,3993.4,1.75288]
[1733549773907,1.04671725,3993.9,3993.4,1.75288]
[1733549774108,0.7704,3993.6,3993.1,1.75302]
[1733549774633,0.92489549,3993.5,3993.1,1.75302]
[1733549774835,0.05973789,3993.5,3993.1,1.75302]
[1733549775794,0.05973789,3993.5,3992.9,1.75308]
[1733549778751,1.07897504,3993.3,3992.7,0.8075]
[1733549778958,0.89632792,3993.2,3992.6,1.75321]
[1733549779106,0.09054825,3993.2,3992.6,1.75321]
[1733549779448,0.09054825,3993.2,3992.4,2.630084]
[1733549779608,0.7835,3993.1,3992.4,2.630084]
[1733549779814,0.8427121,3993.1,3992.4,0.876774]
[1733549780041,0.8427121,3993.1,3992.6,1.75322]
[1733549782142,0.8427121,3993.1,3992.4,0.876774]
[1733549782448,0.8427121,3993.1,3992.7,1.75317]
[1733549784555,1.07897504,3993.0,3992.4,0.876774]
[1733549784755,0.05918111,3993.0,3992.4,0.876774]
[1733549785279,0.05918111,3993.0,3992.7,1.75319]
[1733549787150,0.05918111,3993.0,3992.9,1.75311]
[1733549790336,0.05918111,3993.0,3992.4,0.876774]
[1733549790337,1.36162763,3993.0,3992.4,0.876774]
[1733549790660,1.36162763,3993.0,3992.5,1.75327]
[1733549790661,1.33032177,3993.0,3992.5,1.75327]
[1733549792158,0.25134673,3993.0,3992.4,0.059574]
[1733549792382,0.25134673,3993.0,3992.6,1.75322]
[1733549793767,0.05918111,3993.0,3992.7,1.75318]
[1733549794073,0.05918111,3993.0,3992.9,1.75311]
[1733549794433,0.7636,3993.3,3992.9,1.75311]
[1733549794633,0.05880577,3993.0,3992.9,1.75311]
[1733549794949,0.7636,3993.3,3992.9,1.75311]
[1733549796333,1.43706379,3993.3,3992.9,1.75311]
[1733549797885,1.43706379,3993.3,3992.7,1.75319]
[1733549798044,0.05892755,3993.2,3992.8,1.75315]
[1733549798245,1.43706379,3993.3,3992.8,1.75315]
[1733549799454,0.7636,3993.3,3992.8,1.75315]
[1733549800378,1.07897504,3993.2,3992.8,1.75315]
[1733549801699,0.05889656,3993.1,3992.8,1.75315]
[1733549801906,0.05889656,3993.1,3992.4,0.059574]
[1733549801907,1.75319,3992.8,3992.4,0.059574]
[1733549802102,1.07897504,3992.5,3992.4,0.059574]
[1733549802258,4.8367301,3992.5,3991.4,1.75375]
[1733549802462,1.07897504,3992.1,3991.5,1.75372]
[1733549802709,1.07897504,3992.1,3991.3,0.8108]
[1733549802861,0.05831636,3992.0,3991.3,0.8108]
[1733549803257,0.27644469,3992.0,3991.3,0.8108]
[1733549803563,0.27644469,3992.0,3990.8,1.75402]
[1733549803564,0.7636,3991.4,3990.8,1.75402]
[1733549803986,0.7636,3991.4,3990.2,2.56509]
[1733549804192,0.03131777,3991.3,3990.6,1.75411]
[1733549804499,0.7636,3991.4,3990.3,1.75422]
[1733549804667,0.7636,3991.4,3990.4,1.75419]
[1733549804868,0.9478575,3991.4,3990.4,1.75419]
[1733549805063,0.9478575,3991.4,3990.5,1.75415]
[1733549805269,0.0552947,3991.3,3990.5,1.75415]
[1733549805987,0.0552947,3991.3,3990.2,0.8108]
[1733549806167,0.0552947,3991.3,3990.6,1.75411]
[1733549806371,0.0552947,3991.3,3990.3,2.83322504]
[1733549806709,0.0552947,3991.3,3990.4,0.3644025]
[1733549807019,0.0552947,3991.3,3990.7,1.75403]
[1733549810006,0.0552947,3991.3,3990.2,0.8108]
[1733549810315,0.0552947,3991.3,3990.0,1.07897504]
[1733549810316,0.0552947,3991.3,3991.1,1.75389]
[1733549810691,4.73861224,3991.7,3990.7,2.56487]
[1733549810997,4.73861224,3991.7,3991.3,1.75379]
[1733549811400,4.73861224,3991.7,3990.8,0.3643845]
[1733549811603,4.73861224,3991.7,3991.4,1.75373]
[1733549811786,0.7707,3992.4,3991.2,1.07897504]
[1733549811984,0.1297913,3992.3,3991.4,0.7635]
[1733549812218,0.1297913,3992.3,3991.8,1.75357]
[1733549812715,0.05521468,3992.2,3991.8,1.75357]
[1733549812925,0.1297913,3992.3,3991.4,2.51726]
[1733549813127,0.05518367,3992.1,3991.7,1.75362]
[1733549813416,0.161104,3992.3,3991.8,1.75359]
[1733549813605,0.0552491,3992.0,3991.8,1.75359]
[1733549813919,0.161104,3992.3,3990.9,0.7635]
[1733549813920,2.34796724,3992.1,3990.9,0.7635]
[1733549814123,1.1299931,3992.0,3991.2,1.75385]
[1733549814420,1.15392622,3992.0,3991.2,1.75385]
[1733549814883,1.15392622,3992.0,3990.9,0.7635]
[1733549815210,0.8259491,3992.0,3991.7,1.75363]
[1733549815516,0.0552491,3992.0,3991.8,1.75359]
[1733549815881,0.7707,3992.5,3991.7,0.7635]
[1733549816082,0.7707,3992.5,3992.1,1.75345]
[1733549816378,0.05537311,3992.4,3992.1,1.75345]
[1733549816579,0.05537311,3992.4,3991.7,0.7635]
[1733549816801,0.05537311,3992.4,3992.1,1.75343]
[1733549817381,0.05537311,3992.4,3992.2,1.75341]
[1733549817999,2.43465176,3992.4,3991.6,1.75368]
[1733549818203,0.32053518,3992.3,3991.3,1.75381]
[1733549818414,0.37646247,3992.3,3991.2,0.7635]
[1733549819176,0.80201493,3992.2,3991.2,0.7635]
[1733549819381,0.05586528,3992.1,3991.2,0.7635]
[1733549819583,0.08718023,3992.1,3991.2,0.7635]
[1733549819819,0.05586528,3992.1,3991.2,0.7635]
[1733549820122,0.05586528,3992.1,3991.6,1.75367]
[1733549821133,0.05586528,3992.1,3991.7,1.75363]
[1733549821796,0.05586528,3992.1,3991.9,1.75353]
[1733549821999,4.61604563,3992.5,3991.9,1.75353]
[1733549822312,3.84534563,3992.5,3992.3,1.75336]
[1733549822885,0.7707,3992.8,3992.5,1.75326]
[1733549823489,0.05603799,3992.7,3992.5,1.75326]
[1733549824025,0.056007,3992.6,3992.5,1.75326]
[1733549824181,0.7707,3992.8,3992.5,1.75326]
[1733549824384,0.05603799,3992.7,3992.5,1.75326]
[1733549824721,0.7707,3992.8,3992.5,1.75326]
[1733549824929,0.056007,3992.6,3992.5,1.75326]
[1733549825135,0.7707,3992.8,3992.6,1.75324]
[1733549825426,0.7707,3992.8,3992.1,1.75346]
[1733549825647,0.7707,3992.8,3991.8,1.75356]
[1733549825951,0.7707,3992.8,3992.0,1.75349]
[1733549826106,0.46160456,3992.7,3991.5,0.7635]
[1733549826303,0.46160456,3992.7,3992.1,1.75345]
[1733549826504,0.03131106,3992.6,3992.1,1.75345]
[1733549826928,0.46160456,3992.7,3992.1,1.75345]
[1733549827128,0.05256679,3992.5,3992.1,1.75345]
[1733549827345,0.12848714,3992.5,3992.1,1.75345]
[1733549827550,0.0508057,3992.4,3992.1,1.75345]
[1733549828821,0.0508057,3992.4,3991.5,0.7635]
[1733549829150,0.7707,3992.3,3991.9,1.75354]
[1733549829353,0.7707,3992.3,3992.0,1.75349]
[1733549829551,0.04910881,3992.2,3992.0,1.75349]
[1733549829864,0.7707,3992.3,3992.0,1.75349]
[1733549830060,0.04907781,3992.1,3992.0,1.75349]
[1733549830219,0.7707,3992.3,3992.0,1.75349]
[1733549830553,0.04907781,3992.1,3992.0,1.75349]
[1733549830733,0.7707,3992.3,3992.0,1.75349]
[1733549830936,0.04907781,3992.1,3992.0,1.75349]
[1733549831117,0.7707,3992.3,3992.0,1.75349]
[1733549831322,0.04921407,3992.1,3991.7,1.7536]
[1733549831632,0.04918307,3992.0,3991.7,1.7536]
[1733549831939,0.7707,3992.3,3991.5,0.7635]
[1733549832146,0.04916203,3991.9,3991.5,0.7635]
[1733549832341,0.7707,3992.3,3991.5,0.7635]
[1733549832555,0.7707,3992.3,3991.8,1.75358]
[1733549832757,0.04925504,3992.2,3991.8,1.75358]
[1733549833169,0.04925504,3992.2,3992.1,1.75346]
[1733549833378,0.04925504,3992.2,3992.1,2.91667794]
[1733549833531,3.84534563,3992.7,3992.6,1.75324]
[1733549833872,0.7758,3993.0,3992.6,1.75324]
[1733549834169,0.7758,3993.3,3992.3,2.55323]
[1733549834382,0.04762708,3992.9,3992.8,1.75315]
[1733549834548,0.7758,3993.3,3992.4,1.75333]
[1733549834885,0.04785315,3993.2,3993.0,1.75306]
[1733549835173,0.03130484,3993.2,3992.3,0.7999]
[1733549835337,0.04782216,3993.1,3992.8,1.75312]
[1733549835668,0.03130494,3993.1,3992.4,1.75333]
[1733549836053,0.04786104,3993.0,3992.4,1.75333]
[1733549836253,0.7758,3992.9,3991.7,0.7999]
[1733549836582,2.15631401,3992.8,3991.7,0.7999]
[1733549836875,0.45016166,3992.7,3991.7,0.7999]
[1733549837033,0.45016166,3992.7,3991.9,1.75353]
[1733549837034,0.48147256,3992.7,3991.9,1.75353]
[1733549837744,0.7758,3992.6,3992.1,1.75344]
[1733549837942,0.7758,3992.6,3992.2,1.7534]
[1733549838247,0.04770606,3992.5,3992.2,1.7534]
[1733549838668,0.2996812,3992.5,3992.2,1.7534]
[1733549839371,0.04770606,3992.5,3992.3,1.75337]
[1733549840239,0.04770606,3992.5,3992.0,1.75346]
[1733549840584,0.04770606,3992.5,3992.2,1.75339]
[1733549840919,0.04770606,3992.5,3991.5,0.7999]
[1733549840920,0.04770606,3992.5,3992.3,1.75337]
[1733549841581,0.04770606,3992.5,3992.1,1.75346]
[1733549842806,0.07901658,3992.5,3991.8,1.75358]
[1733549843179,0.07901658,3992.5,3991.5,0.7999]
[1733549843375,0.23758691,3992.5,3991.9,1.75354]
[1733549843586,0.23758691,3992.5,3992.0,1.7535]
[1733549844303,0.04770606,3992.5,3992.0,1.7535]
[1733549845078,0.04770606,3992.5,3992.0,2.5534]
[1733549845281,0.7758,3992.7,3992.0,2.5534]
[1733549845484,0.04755197,3992.4,3992.0,2.5534]
[1733549845788,0.04752096,3992.3,3992.0,1.7535]
[1733549845998,0.7758,3992.7,3992.0,1.7535]
[1733549846314,2.38933885,3992.6,3992.0,1.7535]
[1733549846513,0.22959315,3992.6,3992.0,1.7535]
[1733549847092,0.22959315,3992.6,3992.1,1.75345]
[1733549847719,0.22959315,3992.6,3991.7,2.55353]
[1733549847720,0.86421381,3992.5,3991.7,2.55353]
[1733549847894,0.22959315,3992.6,3992.1,1.75343]
[1733549848090,0.04755197,3992.4,3992.1,1.75343]
[1733549848289,0.20493851,3992.5,3992.1,1.75343]
[1733549848494,0.04752096,3992.3,3992.2,1.75341]
[1733549848716,0.20493851,3992.5,3992.2,1.75341]
[1733549849191,0.04755197,3992.4,3992.2,1.75341]
[1733549849728,0.04755197,3992.4,3991.7,0.7999]
[1733549850025,0.04755197,3992.4,3992.3,1.75337]
[1733549850221,0.7758,3992.7,3992.3,1.75337]
[1733549850418,0.04755197,3992.4,3992.3,1.75337]
[1733549850601,1.04617953,3992.6,3992.3,1.75337]
[1733549850602,0.18197919,3992.6,3992.3,1.75337]
[1733549850923,0.04758296,3992.5,3992.3,1.75337]
[1733549853536,0.04758296,3992.5,3992.4,1.75333]
[1733549853687,0.04758296,3992.5,3992.4,1.76593628]
[1733549853888,3.84534563,3993.0,3992.9,1.75311]
[1733549854095,1.04399194,3993.3,3993.0,1.75306]
[1733549854432,2.16141311,3993.2,3993.0,1.75306]
[1733549854603,1.82649194,3993.4,3993.0,1.75306]
[1733549854945,0.86481485,3993.3,3993.0,1.75306]
[1733549855089,0.7825,3993.4,3993.0,1.75306]
[1733549855293,0.86489181,3993.3,3993.0,1.75306]
[1733549855623,0.7825,3993.4,3993.0,1.75306]
[1733549855786,0.86493553,3993.3,3993.0,1.75306]
[1733549855989,1.82649194,3993.4,3993.0,1.75306]
[1733549856232,0.8649475,3993.3,3993.0,1.75306]
[1733549856386,0.86490993,3993.2,3993.0,1.75306]
[1733549856582,0.0477556,3993.1,3993.0,1.75306]
[1733549856823,1.82649194,3993.4,3993.0,1.75306]
[1733549857122,0.0477556,3993.1,3993.0,1.75306]
[1733549857586,0.7825,3993.4,3993.0,1.75306]
[1733549857792,0.91268498,3993.3,3993.0,1.75306]
[1733549858032,0.04781757,3993.3,3993.0,1.75306]
[1733549860253,0.04781757,3993.3,3992.5,1.75325]
[1733549860566,0.8646541,3993.2,3993.1,1.75302]
[1733549860761,0.04781757,3993.3,3993.2,1.75298]
[1733549861051,4.88933757,3993.7,3993.3,1.7529]
[1733549861252,2.90144093,3993.6,3993.3,1.7529]
[1733549861454,0.86470697,3993.5,3993.3,1.7529]
[1733549861656,0.73967351,3993.6,3993.3,1.7529]
[1733549862650,0.73967351,3993.6,3993.4,1.75287]
[1733549863089,0.73967351,3993.6,3993.5,1.75284]
[1733549863218,3.84534563,3993.7,3993.6,1.7528]
[1733549863415,0.12947904,3993.8,3993.7,1.75276]
[1733549863622,0.8107,3994.1,3993.7,1.75276]
[1733549863867,0.04857137,3993.8,3993.7,1.75276]
[1733549864035,1.04399194,3994.2,3993.9,1.75266]
[1733549864238,2.3779185,3994.4,3994.0,1.75262]
[1733549864239,0.34219104,3994.1,3994.0,1.75262]
[1733549864640,0.8107,3994.4,3994.0,1.75262]
[1733549865162,3.20472014,3994.3,3994.0,1.75262]
[1733549865323,0.8107,3994.4,3994.0,1.75262]
[1733549865528,2.19161375,3994.3,3993.8,2.52701]
[1733549865853,0.03129591,3994.3,3993.9,1.75267]
[1733549866031,0.57313335,3994.2,3993.9,1.75267]
[1733549866239,0.57313335,3994.2,3993.7,1.75274]
[1733549866436,0.57313335,3994.2,3993.5,0.7743]
[1733549866635,0.84199908,3994.1,3992.6,2.5275]
[1733549866857,0.8107,3993.9,3992.6,0.7743]
[1733549867058,0.8107,3993.7,3992.8,1.75311]
[1733549867431,0.91069289,3993.6,3992.8,1.75311]
[1733549867678,2.19067245,3993.5,3992.8,1.75311]
[1733549867833,0.8107,3993.3,3992.6,2.52754]
[1733549868032,0.842004,3993.3,3992.6,2.52754]
[1733549868251,0.04680826,3993.2,3992.6,2.52754]
[1733549869134,0.04680826,3993.2,3992.7,1.75318]
[1733549871171,0.04680826,3993.2,3992.8,0.0125996]
[1733549871376,0.04680826,3993.2,3993.1,1.75302]
[1733549871575,2.3779185,3994.2,3993.7,2.52704]
[1733549871576,1.85469194,3994.2,3993.7,2.52704]
[1733549871736,0.8107,3994.2,3993.7,2.52704]
[1733549874677,0.04512217,3994.1,3993.7,2.52704]
[1733549875080,0.8228,3994.5,3993.7,2.52704]
[1733549875242,0.04509119,3994.0,3993.7,2.52704]
[1733549875440,0.8228,3994.5,3993.7,0.7743]
[1733549875747,1.04399194,3994.6,3993.7,0.7743]
[1733549876077,0.8228,3994.8,3994.0,1.75261]
[1733549877045,2.11798576,3994.8,3994.0,1.75261]
[1733549877240,0.70073233,3994.7,3994.0,1.75261]
[1733549877437,2.11781327,3994.8,3993.5,1.75283]
[1733549877438,1.29501327,3994.8,3994.6,1.75233]
[1733549877638,1.81169194,3996.1,3995.2,1.7521]
[1733549877887,1.29542468,3996.0,3995.2,1.7521]
[1733549878038,0.89705285,3996.1,3995.2,1.7521]
[1733549878243,0.04043819,3995.9,3995.2,1.7521]
[1733549878579,0.51872186,3995.9,3995.3,1.75205]
[1733549878763,0.47828367,3995.9,3995.3,1.75205]
[1733549878966,0.04040724,3995.8,3995.3,1.75205]
[1733549881378,0.04040724,3995.8,3994.7,0.785]
[1733549881585,0.04040724,3995.8,3994.9,1.75222]
[1733549881946,0.7677,3996.1,3994.9,1.75222]
[1733549882178,0.7677,3995.6,3994.6,1.75234]
[1733549882478,0.7677,3995.6,3994.4,0.785]
[1733549882775,0.04104978,3995.5,3994.4,0.785]
[1733549883286,0.04104978,3995.5,3994.3,1.75246]
[1733549883584,0.7677,3995.4,3994.3,1.75246]
[1733549883764,0.80871883,3995.4,3994.3,1.75246]
[1733549883973,0.80871883,3995.4,3994.1,2.53757]
[1733549884285,0.25606888,3995.3,3994.1,2.53757]
[1733549884452,0.29705675,3995.3,3994.2,1.75253]
[1733549888656,0.7911,3995.2,3994.2,1.75253]
[1733549888986,0.83205692,3995.2,3994.2,1.75253]
[1733549889285,0.66855014,3995.1,3994.2,1.75253]
[1733549889455,0.7094761,3995.1,3994.2,1.75253]
[1733549890780,0.04092596,3995.1,3994.2,1.75253]
[1733549891384,0.7911,3995.0,3993.8,2.53041]
[1733549891689,0.04086404,3994.9,3993.8,2.53041]
[1733549891849,0.04086404,3994.9,3994.1,1.75254]
[1733549894596,0.04086404,3994.9,3993.8,0.7777]
[1733549894890,0.8224,3994.8,3993.8,0.7777]
[1733549895048,0.86293031,3994.8,3993.8,2.53039]
[1733549896788,0.47082759,3994.7,3993.8,2.53039]
[1733549897167,0.04046838,3994.6,3993.8,2.53039]
[1733549898219,0.04046838,3994.6,3993.9,1.75266]
[1733549900164,0.04046838,3994.6,3994.0,1.7526]
[1733549901587,0.04046838,3994.6,3993.8,0.7777]
[1733549901795,0.1333696,3994.5,3993.7,1.75271]
[1733549902067,0.04028423,3994.4,3993.7,1.75271]
[1733549903089,0.04028423,3994.4,3993.9,1.75266]
[1733549903397,0.47082759,3994.7,3993.9,1.75266]
[1733549903721,0.36328974,3994.6,3993.9,1.75266]
[1733549903877,0.0403152,3994.5,3993.9,1.75266]
[1733549904295,0.47082759,3994.7,3993.9,1.75266]
[1733549904504,0.03999678,3994.6,3993.9,1.75266]
[1733549905709,0.8224,3994.5,3993.3,0.7747]
[1733549905917,0.8224,3994.5,3992.8,2.34796724]
[1733549905918,0.8224,3994.3,3993.0,0.7747]
[1733549906210,0.86221632,3994.2,3993.2,1.75295]
[1733549906674,0.8224,3994.0,3993.0,0.7747]
[1733549907017,0.8224,3993.8,3992.9,1.75308]
[1733549907397,0.03966144,3993.7,3992.9,1.75308]
[1733549907719,0.07096367,3993.7,3992.9,1.75308]
[1733549907900,0.03966144,3993.7,3992.9,1.7531]
[1733549908279,0.8224,3993.6,3992.6,1.75324]
[1733549908605,0.8224,3993.4,3992.4,1.75332]
[1733549908910,0.07054535,3993.3,3992.6,1.75323]
[1733549909114,0.03924124,3993.3,3992.7,1.75318]
[1733549910574,0.03924124,3993.3,3992.4,1.75333]
[1733549910797,0.03924124,3993.3,3992.7,1.75318]
[1733549911022,0.03924124,3993.3,3992.6,0.01260001]
[1733549911314,0.03924124,3993.3,3993.2,1.75298]
[1733549911682,0.8224,3993.8,3993.4,1.75288]
[1733549912109,0.8113,3994.1,3993.5,1.75283]
[1733549913018,0.8113,3994.1,3993.6,1.75279]
[1733549913177,0.8113,3994.1,3993.4,0.8099]
[1733549913378,0.8113,3994.1,3993.6,1.75276]
[1733549914412,0.0394015,3994.0,3993.6,1.75276]
[1733549915694,0.0394015,3994.0,3993.4,2.56278]
[1733549915896,0.0394015,3994.0,3993.5,1.75283]
[1733549917039,0.0394015,3994.0,3993.6,1.75278]
[1733549918039,0.0394015,3994.0,3993.7,1.75275]
[1733549924340,0.0394015,3994.0,3993.9,1.75267]
[1733549924545,1.82309194,3994.4,3993.5,1.76539294]
[1733549924546,0.7791,3994.4,3993.5,1.76539294]
[1733549924719,0.03955104,3994.3,3994.0,1.75259]
[1733549924919,0.03955104,3994.3,3993.4,0.8099]
[1733549925115,0.03955104,3994.3,3994.2,1.75254]
[1733549925516,0.03955104,3994.3,3994.0,1.75262]
[1733549926316,0.22581534,3994.3,3993.4,0.8099]
[1733549926524,0.03955104,3994.3,3993.9,1.75266]
[1733549927045,0.03955104,3994.3,3994.0,1.75261]
[1733549927750,0.03955104,3994.3,3993.4,0.8099]
[1733549927751,0.03955104,3994.3,3994.1,1.75258]
[1733549928059,0.03955104,3994.3,3994.1,1.75256]
[1733549929758,0.03955104,3994.3,3993.8,1.75268]
[1733549930055,0.22581534,3994.3,3993.9,1.75267]
[1733549930350,0.03955104,3994.3,3993.9,1.75267]
[1733549930768,0.03955104,3994.3,3994.1,1.75256]
[1733549935376,0.03955104,3994.3,3994.2,1.75254]
[1733549935584,2.61686175,3995.0,3994.2,1.75254]
[1733549935585,1.04399194,3994.6,3994.2,1.75254]
[1733549935740,1.04399194,3994.7,3994.6,1.75236]
[1733549935928,2.16458455,3994.7,3994.6,1.75236]
[1733549936439,2.20378234,3994.7,3994.6,1.75236]
[1733549937045,2.20378869,3994.7,3994.6,1.75236]
[1733549937238,0.90503415,3994.7,3994.6,1.75236]
[1733549937672,0.03919779,3994.7,3994.6,1.75236]
[1733549938208,1.87229194,3995.0,3994.6,1.75236]
[1733549938474,0.03930105,3994.7,3994.6,1.75236]
[1733549938630,1.87229194,3995.0,3994.6,1.75236]
[1733549938830,0.03930105,3994.7,3994.6,1.75236]
[1733549939033,1.87229194,3995.0,3994.6,1.75236]
[1733549939328,0.86564862,3994.9,3994.6,1.75236]
[1733549939529,0.03933202,3994.8,3994.6,1.75236]
[1733549939762,1.87229194,3995.0,3994.6,1.75236]
[1733549939928,2.20324276,3994.9,3994.6,1.75236]
[1733549940129,0.86558783,3994.8,3994.6,1.75236]
[1733549940333,0.03930105,3994.7,3994.6,1.75236]
[1733549940582,2.24184987,3995.0,3994.6,1.75236]
[1733549940583,1.04399194,3994.9,3994.6,1.75236]
[1733549940874,2.20342799,3994.8,3994.6,1.75236]